fUST/lending_fUST_20251004
["ID","MTS","AMOUNT","RATE_DAILY","PERIOD"]
[389134884,1759587071065,-500.0,0.00020273,2]
[389134885,1759587071077,-765.97,0.00020273,2]
[389134886,1759587071087,-1314.15,0.00020273,2]
[389134887,1759587071097,-500.0,0.00020273,2]
[389134888,1759587071107,-500.0,0.00020273,2]
[389134889,1759587071117,-500.0,0.00020273,2]
[389134890,1759587071126,-705.66,0.00020273,2]
[389134891,1759587071136,-1302.5,0.00020273,2]
[389134892,1759587071145,-695.67,0.00020273,2]
[389134893,1759587071155,-500.0,0.00020273,2]
[389134894,1759587071164,-1830.47,0.00020273,2]
[389134895,1759587071173,-500.0,0.00020273,2]
[389134896,1759587071183,-789.01,0.00020273,2]
[389134897,1759587071193,-500.0,0.00020273,2]
[389134898,1759587071203,-500.0,0.00020273,2]
[389134899,1759587071212,-6406.25,0.00020273,2]
[389134900,1759587071222,-933.1,0.00020273,2]
[389134901,1759587071231,-500.0,0.00020273,2]
[389134902,1759587071240,-500.0,0.00020273,2]
[389134903,1759587071250,-1426.03,0.00020273,2]
[389134904,1759587071259,-500.0,0.00020273,2]
[389134905,1759587071269,-1683.3,0.00020273,2]
[389134906,1759587071278,-390.75451838,0.00020273,2]
[389134907,1759587071287,-3799.61,0.00020273,2]
[389134908,1759587071297,-500.0,0.00020273,2]
[389134909,1759587071307,-1077.63,0.00020273,2]
[389134910,1759587071316,-994.5,0.00020273,2]
[389134911,1759587071326,-1634.28,0.00020273,2]
[389134912,1759587071335,-4955.65,0.00020273,2]
[389134913,1759587071344,-988.75,0.00020273,2]
[389134914,1759587071354,-500.0,0.00020273,2]
[389134915,1759587071363,-500.4,0.00020273,2]
[389134916,1759587071372,-2387.49,0.00020273,2]
[389134917,1759587071381,-2843.73,0.00020273,2]
[389134918,1759587071391,-500.0,0.00020273,2]
[389134919,1759587071400,-654.12,0.00020273,2]
[389134920,1759587071409,-1317.14,0.00020273,2]
[389134921,1759587071418,-2833.76,0.00020273,2]
[389134922,1759587071428,-500.0,0.00020273,2]
[389134923,1759587071437,-824.34,0.00020273,2]
[389134924,1759587071447,-500.0,0.00020273,2]
[389134925,1759587071456,-500.0,0.00020273,2]
[389134926,1759587071465,-500.0,0.00020273,2]
[389134927,1759587071475,-1457.59,0.00020273,2]
[389134928,1759587071484,-500.0,0.00020273,2]
[389134929,1759587071493,-500.0,0.00020273,2]
[389134930,1759587071502,-500.0,0.00020273,2]
[389134931,1759587071512,-500.0,0.00020273,2]
[389134932,1759587071520,-500.0,0.00020273,2]
[389134933,1759587071530,-522.62,0.00020273,2]
[389134934,1759587071539,-621.93,0.00020273,2]
[389134935,1759587071548,-564.68,0.00020273,2]
[389134936,1759587071557,-500.0,0.00020273,2]
[389134937,1759587071566,-500.0,0.00020273,2]
[389134938,1759587071576,-551.93,0.00020273,2]
[389134939,1759587071585,-567.74,0.00020273,2]
[389134940,1759587071595,-4232.15,0.00020273,2]
[389134941,1759587071604,-500.0,0.00020273,2]
[389134942,1759587071614,-500.0,0.00020273,2]
[389134944,1759587071623,-500.0,0.00020273,2]
[389134945,1759587071633,-518.41590094,0.00020273,2]
[389134946,1759587071643,-500.0,0.00020273,2]
[389134947,1759587071653,-500.0,0.00020273,2]
[389134948,1759587071662,-549.22,0.00020273,2]
[389134949,1759587071671,-861.06,0.00020273,2]
[389134950,1759587071681,-1037.49,0.00020273,2]
[389134951,1759587071690,-500.0,0.00020273,2]
[389134952,1759587071700,-500.0,0.00020273,2]
[389134953,1759587071709,-500.0,0.00020273,2]
[389134954,1759587071718,-2433.95,0.00020273,2]
[389134955,1759587071728,-1045.73,0.00020273,2]
[389134956,1759587071737,-1741.89,0.00020273,2]
[389134957,1759587071746,-500.0,0.00020273,2]
[389134958,1759587071756,-1238.03,0.00020273,2]
[389134959,1759587071765,-877.45,0.00020273,2]
[389134960,1759587071775,-551.63,0.00020273,2]
[389134961,1759587071784,-940.74,0.00020273,2]
[389134962,1759587071793,-952.89,0.00020273,2]
[389134963,1759587071802,-1411.48,0.00020273,2]
[389134964,1759587071812,-1425.57,0.00020273,2]
[389134965,1759587071821,-783.79,0.00020273,2]
[389134966,1759587071830,-1226.05,0.00020273,2]
[389134967,1759587071841,-500.0,0.00020273,2]
[389134968,1759587071851,-1859.36,0.00020273,2]
[389134969,1759587071861,-500.0,0.00020273,2]
[389134970,1759587071870,-1438.35,0.00020273,2]
[389134971,1759587071879,-1188.35,0.00020273,2]
[389134972,1759587071889,-500.0,0.00020273,2]
[389134973,1759587071898,-500.0,0.00020273,2]
[389134974,1759587071907,-500.0,0.00020273,2]
[389134975,1759587071916,-970.53,0.00020273,2]
[389134976,1759587071925,-2324.7,0.00020273,2]
[389134977,1759587071935,-500.0,0.00020273,2]
[389134978,1759587071944,-999.86,0.00020273,2]
[389134979,1759587072064,-500.0,0.00020273,2]
[389134980,1759587072074,-500.0,0.00020273,2]
[389134981,1759587072084,-632.59,0.00020273,2]
[389134982,1759587072093,-500.73,0.00020273,2]
[389134983,1759587072102,-1334.88,0.00020273,2]
[389134984,1759587072111,-500.0,0.00020273,2]
[389134985,1759587072120,-586.07,0.00020273,2]
[389134986,1759587072129,-500.0,0.00020273,2]
[389134987,1759587072139,-1167.55,0.00020273,2]
[389134988,1759587072148,-500.0,0.00020273,2]
[389134989,1759587072158,-2110.39,0.00020273,2]
[389134990,1759587072167,-500.0,0.00020273,2]
[389134991,1759587072177,-748.13,0.00020273,2]
[389134992,1759587072186,-3024.98,0.00020273,2]
[389134993,1759587072196,-841.18,0.00020273,2]
[389134994,1759587072205,-500.0,0.00020273,2]
[389134995,1759587072214,-816.0,0.00020273,2]
[389134996,1759587072223,-782.47,0.00020273,2]
[389134997,1759587072232,-500.0,0.00020273,2]
[389134998,1759587072241,-1446.22,0.00020273,2]
[389134999,1759587072251,-613.3,0.00020273,2]
[389135000,1759587072260,-615.53,0.00020273,2]
[389135001,1759587072269,-500.0,0.00020273,2]
[389135002,1759587072279,-1035.33,0.00020273,2]
[389135003,1759587072288,-3076.24,0.00020273,2]
[389135004,1759587072298,-256.27063163,0.00020273,2]
[389135005,1759587072307,-500.0,0.00020273,2]
[389135006,1759587072316,-1236.23,0.00020273,2]
[389135007,1759587072325,-1348.77,0.00020273,2]
[389135008,1759587072334,-606.23,0.00020273,2]
[389135009,1759587072344,-500.0,0.00020273,2]
[389135010,1759587072354,-844.67,0.00020273,2]
[389135011,1759587072363,-500.0,0.00020273,2]
[389135012,1759587072372,-1068.77,0.00020273,2]
[389135013,1759587072381,-500.0,0.00020273,2]
[389135014,1759587072393,-500.0,0.00020273,2]
[389135015,1759587072402,-500.0,0.00020273,2]
[389135016,1759587072412,-1007.6,0.00020273,2]
[389135017,1759587072421,-500.0,0.00020273,2]
[389135018,1759587072430,-500.0,0.00020273,2]
[389135019,1759587072440,-1461.15,0.00020273,2]
[389135020,1759587072449,-6357.54,0.00020273,2]
[389135021,1759587072459,-492.47914744,0.00020273,2]
[389135022,1759587072468,-500.0,0.00020273,2]
[389135023,1759587072477,-500.0,0.00020273,2]
[389135024,1759587072487,-3259.7,0.00020273,2]
[389135025,1759587072497,-3670.35,0.00020273,2]
[389135026,1759587072506,-500.0,0.00020273,2]
[389135027,1759587072515,-580.18,0.00020273,2]
[389135028,1759587072524,-645.29,0.00020273,2]
[389135029,1759587072533,-500.0,0.00020273,2]
[389135030,1759587072542,-500.0,0.00020273,2]
[389135031,1759587072551,-546.41,0.00020273,2]
[389135032,1759587072560,-500.0,0.00020273,2]
[389135033,1759587072569,-597.42,0.00020273,2]
[389135034,1759587072577,-500.0,0.00020273,2]
[389135035,1759587072587,-500.0,0.00020273,2]
[389135036,1759587072596,-4259.16,0.00020273,2]
[389135037,1759587072606,-5211.29,0.00020273,2]
[389135038,1759587072615,-500.0,0.00020274,2]
[389135039,1759587072624,-170.46811533,0.00020274,2]
[389135040,1759587072635,-363.560809,0.00020274,2]
[389135041,1759587072645,-500.0,0.00020274,2]
[389135042,1759587072658,-1624.0,0.00020274,2]
[389135043,1759587072667,-500.0,0.00020274,2]
[389135044,1759587072677,-186.44778959,0.00020274,2]
[389135045,1759587072687,-500.0,0.00020274,2]
[389135046,1759587072697,-500.0,0.00020274,2]
[389135047,1759587072707,-500.0,0.00020274,2]
[389135048,1759587072716,-153.23288229,0.00020274,2]
[389135049,1759587072725,-151.0,0.00020274,2]
[389135050,1759587072737,-500.0,0.00020274,2]
[389135051,1759587072746,-500.0,0.00020274,2]
[389135052,1759587072756,-310.02029068,0.00020274,2]
[389135053,1759587072766,-11799.58728372,0.000203,2]
[389135054,1759587072776,-653.93624795,0.00020321,2]
[389135055,1759587072786,-1000.0,0.00020321,2]
[389135056,1759587072795,-1000.0,0.00020321,2]
[389135057,1759587072805,-500.0,0.00020333,2]
[389135058,1759587072814,-500.0,0.00020333,2]
[389135059,1759587072823,-642.55,0.00020334,2]
[389135060,1759587072832,-500.0,0.00020334,2]
[389135061,1759587072842,-500.0,0.00020334,2]
[389135062,1759587072851,-607.48158416,0.00020334,2]
[389135063,1759587072860,-816.17,0.00020334,2]
[389135064,1759587072869,-1471.55,0.00020334,2]
[389135065,1759587072878,-500.0,0.00020334,2]
[389135066,1759587072888,-756.71,0.00020334,2]
[389135067,1759587072898,-920.13,0.00020334,2]
[389135068,1759587072907,-966.5,0.00020334,2]
[389135069,1759587072916,-500.0,0.00020334,2]
[389135070,1759587072926,-500.0,0.00020334,2]
[389135071,1759587072935,-1265.8,0.00020334,2]
[389135072,1759587072944,-500.0,0.00020334,2]
[389135073,1759587072954,-500.0,0.00020334,2]
[389135074,1759587072963,-500.0,0.00020334,2]
[389135075,1759587072972,-500.0,0.00020334,2]
[389135076,1759587072981,-500.0,0.00020334,2]
[389135077,1759587072991,-500.0,0.00020334,2]
[389135078,1759587073000,-500.0,0.00020334,2]
[389135079,1759587073009,-500.0,0.00020334,2]
[389135080,1759587073019,-567.84,0.00020334,2]
[389135081,1759587073028,-500.0,0.00020334,2]
[389135082,1759587073038,-500.0,0.00020334,2]
[389135083,1759587073047,-500.0,0.00020334,2]
[389135084,1759587073057,-825.92,0.00020334,2]
[389135085,1759587073067,-500.0,0.00020334,2]
[389135086,1759587073076,-500.0,0.00020334,2]
[389135087,1759587073086,-500.0,0.00020334,2]
[389135088,1759587073095,-500.0,0.00020334,2]
[389135089,1759587073105,-394.85253813,0.00020334,2]
[389135090,1759587073114,-500.0,0.00020334,2]
[389135091,1759587073123,-500.0,0.00020334,2]
[389135092,1759587073132,-913.53,0.00020334,2]
[389135093,1759587073142,-500.0,0.00020334,2]
[389135094,1759587073151,-500.0,0.00020334,2]
[389135095,1759587073160,-500.0,0.00020334,2]
[389135096,1759587073170,-841.49,0.00020334,2]
[389135097,1759587073179,-500.0,0.00020334,2]
[389135098,1759587073189,-283.13516296,0.00020334,2]
[389135099,1759587073198,-500.0,0.00020334,2]
[389135100,1759587073208,-2029.7,0.00020334,2]
[389135101,1759587073218,-633.78,0.00020334,2]
[389135102,1759587073227,-500.0,0.00020334,2]
[389135103,1759587073237,-1538.14,0.00020334,2]
[389135104,1759587073246,-500.0,0.00020334,2]
[389135105,1759587073256,-288.49280113,0.00020334,2]
[389135106,1759587073265,-500.0,0.00020334,2]
[389135107,1759587073274,-500.0,0.00020334,2]
[389135108,1759587073284,-500.0,0.00020334,2]
[389135109,1759587073293,-422.9889412,0.00020334,2]
[389135110,1759587073302,-646.53,0.00020334,2]
[389135111,1759587073312,-500.0,0.00020345,2]
[389135112,1759587073322,-811.65,0.00020345,2]
[389135113,1759587073331,-500.0,0.00020345,2]
[389135114,1759587073341,-500.0,0.00020345,2]
[389135115,1759587073350,-515.11,0.00020345,2]
[389135116,1759587073360,-500.0,0.00020345,2]
[389135117,1759587073370,-500.0,0.00020345,2]
[389135118,1759587073380,-500.0,0.00020345,2]
[389135119,1759587073390,-612.17,0.00020345,2]
[389135120,1759587073400,-700.87,0.00020345,2]
[389135121,1759587073410,-500.0,0.00020345,2]
[389135122,1759587073421,-219.98575775,0.00020345,2]
[389135123,1759587073431,-500.0,0.00020345,2]
[389135124,1759587073440,-500.0,0.00020345,2]
[389135125,1759587073449,-314.39204716,0.00020345,2]
[389135126,1759587073458,-500.0,0.00020345,2]
[389135127,1759587073467,-1500.0,0.00020368,2]
[389135128,1759587073476,-780.0,0.000204,3]
[389135129,1759587073486,-553.0,0.00020418,2]
[389135130,1759587073496,-168.0,0.00020446,2]
[389135131,1759587073505,-168.0,0.00020451,2]
[389135132,1759587073515,-168.0,0.00020462,2]
[389135133,1759587073524,-168.0,0.00020462,2]
[389135134,1759587073534,-168.0,0.00020497,2]
[389135135,1759587073543,-1000.0,0.00020521,2]
[389135136,1759587073552,-1000.0,0.00020521,2]
[389135137,1759587073562,-506.45906511,0.00020521,2]
[389135138,1759587073571,-1000.0,0.00020521,2]
[389135139,1759587073581,-1000.0,0.00020521,2]
[389135140,1759587073592,-1000.0,0.00020521,2]
[389135141,1759587073602,-1000.0,0.00020521,2]
[389135142,1759587073611,-1000.0,0.00020521,2]
[389135143,1759587073620,-1000.0,0.00020521,2]
[389135144,1759587073630,-1000.0,0.00020521,2]
[389135145,1759587073639,-502.11309863,0.00020521,2]
[389135146,1759587073649,-1000.0,0.00020521,2]
[389135147,1759587073658,-1000.0,0.00020521,2]
[389135148,1759587073667,-1000.0,0.00020521,2]
[389135149,1759587073677,-1000.0,0.00020521,2]
[389135150,1759587073686,-1000.0,0.00020521,2]
[389135151,1759587073695,-1000.0,0.00020521,2]
[389135152,1759587073705,-1000.0,0.00020521,2]
[389135153,1759587073715,-1000.0,0.00020521,2]
[389135154,1759587073729,-1000.0,0.00020521,2]
[389135155,1759587073738,-1000.0,0.00020521,2]
[389135156,1759587073749,-1000.0,0.00020521,2]
[389135157,1759587073758,-1000.0,0.00020521,2]
[389135158,1759587073768,-1000.0,0.00020521,2]
[389135159,1759587073778,-1000.0,0.00020521,2]
[389135160,1759587073788,-607.66826689,0.00020521,2]
[389135161,1759587073798,-1000.0,0.00020521,2]
[389135162,1759587073808,-1000.0,0.00020521,2]
[389135163,1759587073817,-1000.0,0.00020521,2]
[389135164,1759587073828,-1000.0,0.00020521,2]
[389135165,1759587073838,-1000.0,0.00020521,2]
[389135166,1759587073961,-1000.0,0.00020521,2]
[389135167,1759587073979,-1099.57751103,0.00020521,2]
[389135168,1759587073988,-1000.0,0.00020521,2]
[389135169,1759587073998,-173.2076754,0.00020521,2]
[389135170,1759587074007,-1000.0,0.00020521,2]
[389135171,1759587074017,-1000.0,0.00020521,2]
[389135172,1759587074026,-1000.0,0.00020521,2]
[389135173,1759587074036,-1000.0,0.00020521,2]
[389135174,1759587074045,-1000.0,0.00020521,2]
[389135175,1759587074055,-1000.0,0.00020521,2]
[389135176,1759587074064,-1000.0,0.00020521,2]
[389135177,1759587074074,-1000.0,0.00020521,2]
[389135178,1759587074084,-1000.0,0.00020521,2]
[389135179,1759587074095,-823.82,0.00020538,3]
[389135180,1759587074104,-411.9,0.00020538,3]
[389135181,1759587074113,-500.0,0.00020547,2]
[389135182,1759587074123,-500.0,0.00020547,2]
[389135183,1759587074132,-500.0,0.00020547,2]
[389135184,1759587074142,-500.0,0.00020547,2]
[389135185,1759587074151,-500.0,0.00020547,2]
[389135186,1759587074161,-669.27,0.00020547,2]
[389135187,1759587074171,-500.0,0.00020547,2]
[389135188,1759587074180,-500.0,0.00020547,2]
[389135189,1759587074189,-500.0,0.00020547,2]
[389135190,1759587074199,-875.2,0.00020547,2]
[389135191,1759587074209,-500.0,0.00020547,2]
[389135192,1759587074218,-500.0,0.00020547,2]
[389135193,1759587074229,-500.0,0.00020547,2]
[389135194,1759587074239,-836.97,0.00020547,2]
[389135195,1759587074249,-500.0,0.00020547,2]
[389135196,1759587074258,-634.21599262,0.00020547,2]
[389135197,1759587074268,-587.09,0.00020547,2]
[389135198,1759587074277,-500.0,0.00020547,2]
[389135199,1759587074287,-2784.11,0.00020547,2]
[389135200,1759587074296,-1878.18,0.00020547,2]
[389135201,1759587074305,-500.0,0.00020547,2]
[389135202,1759587074315,-500.0,0.00020547,2]
[389135203,1759587074324,-500.0,0.00020547,2]
[389135204,1759587074334,-1472.77,0.00020547,2]
[389135205,1759587074343,-500.0,0.00020547,2]
[389135206,1759587074353,-500.0,0.00020547,2]
[389135207,1759587074363,-500.0,0.00020547,2]
[389135208,1759587074373,-500.0,0.00020547,2]
[389135209,1759587074382,-700.24,0.00020547,2]
[389135210,1759587074391,-500.0,0.00020547,2]
[389135211,1759587074400,-1477.21,0.00020547,2]
[389135212,1759587074410,-2712.04,0.00020547,2]
[389135213,1759587074419,-500.0,0.00020547,2]
[389135214,1759587074428,-1053.54,0.00020547,2]
[389135215,1759587074438,-863.98,0.00020547,2]
[389135216,1759587074448,-500.0,0.00020547,2]
[389135217,1759587074457,-627.1,0.00020547,2]
[389135218,1759587074467,-500.0,0.00020547,2]
[389135219,1759587074476,-500.0,0.00020547,2]
[389135220,1759587074486,-558.65,0.00020547,2]
[389135221,1759587074496,-500.0,0.00020547,2]
[389135222,1759587074508,-761.81,0.00020547,2]
[389135223,1759587074517,-500.0,0.00020547,2]
[389135224,1759587074526,-500.0,0.00020547,2]
[389135225,1759587074535,-322.89293119,0.00020547,2]
[389135226,1759587074544,-987.82,0.00020547,2]
[389135227,1759587074553,-772.17,0.00020547,2]
[389135228,1759587074562,-500.0,0.00020547,2]
[389135229,1759587074571,-3073.86,0.00020547,2]
[389135230,1759587074580,-682.18,0.00020547,2]
[389135231,1759587074590,-874.08,0.00020547,2]
[389135232,1759587074599,-602.54,0.00020547,2]
[389135233,1759587074608,-500.0,0.00020547,2]
[389135234,1759587074617,-592.41,0.00020547,2]
[389135235,1759587074626,-500.0,0.00020547,2]
[389135236,1759587074636,-765.97,0.00020547,2]
[389135237,1759587074645,-1314.15,0.00020547,2]
[389135238,1759587074658,-500.0,0.00020547,2]
[389135239,1759587074668,-267.37020531,0.00020547,2]
[389135240,1759587074677,-500.0,0.00020547,2]
[389135241,1759587074687,-705.66,0.00020547,2]
[389135242,1759587074697,-1302.5,0.00020547,2]
[389135243,1759587074706,-695.67,0.00020547,2]
[389135244,1759587074716,-500.0,0.00020547,2]
[389135245,1759587074727,-1830.47,0.00020547,2]
[389135246,1759587074736,-500.0,0.00020547,2]
[389135247,1759587074746,-789.01,0.00020547,2]
[389135248,1759587074756,-500.0,0.00020547,2]
[389135249,1759587074767,-500.0,0.00020547,2]
[389135250,1759587074775,-933.1,0.00020547,2]
[389135251,1759587074786,-6406.25,0.00020547,2]
[389135252,1759587074795,-500.0,0.00020547,2]
[389135253,1759587074805,-500.0,0.00020547,2]
[389135254,1759587074814,-1426.03,0.00020547,2]
[389135255,1759587074823,-500.0,0.00020547,2]
[389135256,1759587074832,-1683.3,0.00020547,2]
[389135257,1759587074841,-3799.61,0.00020547,2]
[389135258,1759587074851,-500.0,0.00020547,2]
[389135259,1759587074861,-1077.63,0.00020547,2]
[389135260,1759587074870,-994.5,0.00020547,2]
[389135261,1759587074880,-500.0,0.00020547,2]
[389135262,1759587074889,-500.0,0.00020547,2]
[389135263,1759587074900,-500.0,0.00020547,2]
[389135264,1759587074910,-500.0,0.00020547,2]
[389135265,1759587074919,-500.0,0.00020547,2]
[389135266,1759587074928,-500.0,0.00020547,2]
[389135267,1759587074937,-500.0,0.00020547,2]
[389135268,1759587074946,-1634.28,0.00020547,2]
[389135269,1759587074955,-458.1176446,0.00020547,2]
[389135270,1759587074964,-4955.65,0.00020547,2]
[389135271,1759587074973,-988.75,0.00020547,2]
[389135272,1759587074982,-500.0,0.00020547,2]
[389135273,1759587074991,-500.4,0.00020547,2]
[389135274,1759587075000,-2843.73,0.00020547,2]
[389135275,1759587075010,-2387.49,0.00020547,2]
[389135276,1759587075019,-500.0,0.00020547,2]
[389135277,1759587075028,-654.12,0.00020547,2]
[389135278,1759587075037,-1317.14,0.00020547,2]
[389135279,1759587075047,-2833.76,0.00020547,2]
[389135280,1759587075057,-500.0,0.00020547,2]
[389135281,1759587075067,-824.34,0.00020547,2]
[389135282,1759587075077,-500.0,0.00020547,2]
[389135283,1759587075086,-500.0,0.00020547,2]
[389135284,1759587075095,-500.0,0.00020547,2]
[389135285,1759587075105,-1457.59,0.00020547,2]
[389135286,1759587075114,-513.88313056,0.00020547,2]
[389135287,1759587075123,-500.0,0.00020547,2]
[389135288,1759587075132,-500.0,0.00020547,2]
[389135289,1759587075142,-500.0,0.00020547,2]
[389135290,1759587075151,-500.0,0.00020547,2]
[389135291,1759587075160,-522.62,0.00020547,2]
[389135292,1759587075170,-621.93,0.00020547,2]
[389135293,1759587075179,-564.68,0.00020547,2]
[389135294,1759587075188,-500.0,0.00020547,2]
[389135295,1759587075198,-500.0,0.00020547,2]
[389135296,1759587075208,-551.93,0.00020547,2]
[389135297,1759587075217,-567.74,0.00020547,2]
[389135298,1759587075226,-4232.15,0.00020547,2]
[389135299,1759587075235,-500.0,0.00020547,2]
[389135300,1759587075244,-500.0,0.00020547,2]
[389135301,1759587075254,-500.0,0.00020547,2]
[389135302,1759587075263,-500.0,0.00020547,2]
[389135303,1759587075273,-500.0,0.00020547,2]
[389135304,1759587075283,-549.22,0.00020547,2]
[389135305,1759587075292,-861.06,0.00020547,2]
[389135306,1759587075302,-1037.49,0.00020547,2]
[389135307,1759587075311,-500.0,0.00020547,2]
[389135308,1759587075320,-500.0,0.00020547,2]
[389135309,1759587075330,-500.0,0.00020547,2]
[389135310,1759587075339,-1045.73,0.00020547,2]
[389135311,1759587075348,-2433.95,0.00020547,2]
[389135312,1759587075357,-1741.89,0.00020547,2]
[389135313,1759587075366,-500.0,0.00020547,2]
[389135314,1759587075376,-1238.03,0.00020547,2]
[389135315,1759587075385,-877.45,0.00020547,2]
[389135316,1759587075394,-551.63,0.00020547,2]
[389135317,1759587075404,-940.74,0.00020547,2]
[389135318,1759587075413,-952.89,0.00020547,2]
[389135319,1759587075422,-1411.48,0.00020547,2]
[389135320,1759587075432,-1425.57,0.00020547,2]
[389135321,1759587075442,-783.79,0.00020547,2]
[389135322,1759587075451,-1226.05,0.00020547,2]
[389135323,1759587075460,-500.0,0.00020547,2]
[389135324,1759587075470,-1859.36,0.00020547,2]
[389135325,1759587075479,-500.0,0.00020547,2]
[389135326,1759587075489,-1438.35,0.00020547,2]
[389135327,1759587075498,-1188.35,0.00020547,2]
[389135328,1759587075507,-367.61138401,0.00020547,2]
[389135329,1759587075517,-500.0,0.00020547,2]
[389135330,1759587075526,-500.0,0.00020547,2]
[389135331,1759587075535,-970.53,0.00020547,2]
[389135332,1759587075545,-2324.7,0.00020547,2]
[389135333,1759587075554,-500.0,0.00020547,2]
[389135334,1759587075563,-999.86,0.00020547,2]
[389135335,1759587075572,-500.0,0.00020547,2]
[389135336,1759587075581,-500.0,0.00020547,2]
[389135337,1759587075591,-632.59,0.00020547,2]
[389135338,1759587075702,-500.73,0.00020547,2]
[389135339,1759587075712,-1334.88,0.00020547,2]
[389135340,1759587075722,-500.0,0.00020547,2]
[389135341,1759587075731,-586.07,0.00020547,2]
[389135342,1759587075741,-266.72883709,0.00020547,2]
[389135343,1759587075750,-1167.55,0.00020547,2]
[389135344,1759587075761,-500.0,0.00020547,2]
[389135345,1759587075770,-2110.39,0.00020547,2]
[389135346,1759587075780,-500.0,0.00020547,2]
[389135347,1759587075790,-748.13,0.00020547,2]
[389135348,1759587075799,-3024.98,0.00020547,2]
[389135349,1759587075809,-841.18,0.00020547,2]
[389135350,1759587075818,-500.0,0.00020547,2]
[389135351,1759587075828,-816.0,0.00020547,2]
[389135352,1759587075838,-782.47,0.00020547,2]
[389135353,1759587075847,-500.0,0.00020547,2]
[389135354,1759587075857,-1446.22,0.00020547,2]
[389135355,1759587075866,-613.3,0.00020547,2]
[389135356,1759587075876,-615.53,0.00020547,2]
[389135357,1759587075885,-500.0,0.00020547,2]
[389135358,1759587075895,-1035.33,0.00020547,2]
[389135359,1759587075904,-3076.24,0.00020547,2]
[389135360,1759587075914,-156.87135269,0.00020547,2]
[389135361,1759587075923,-1236.23,0.00020547,2]
[389135362,1759587075932,-1348.77,0.00020547,2]
[389135363,1759587075942,-606.23,0.00020547,2]
[389135364,1759587075952,-500.0,0.00020547,2]
[389135365,1759587075961,-844.67,0.00020547,2]
[389135366,1759587075973,-500.0,0.00020547,2]
[389135367,1759587075983,-1068.77,0.00020547,2]
[389135368,1759587075993,-500.0,0.00020547,2]
[389135369,1759587076003,-396.27836181,0.00020547,2]
[389135370,1759587076014,-500.0,0.00020547,2]
[389135371,1759587076024,-1007.6,0.00020547,2]
[389135372,1759587076034,-500.0,0.00020547,2]
[389135373,1759587076044,-500.0,0.00020547,2]
[389135374,1759587076054,-1461.15,0.00020547,2]
[389135375,1759587076064,-6357.54,0.00020547,2]
[389135376,1759587076074,-500.0,0.00020547,2]
[389135377,1759587076084,-500.0,0.00020547,2]
[389135378,1759587076094,-3259.7,0.00020547,2]
[389135379,1759587076103,-3670.35,0.00020547,2]
[389135380,1759587076114,-500.0,0.00020547,2]
[389135381,1759587076123,-580.18,0.00020547,2]
[389135382,1759587076133,-645.29,0.00020547,2]
[389135383,1759587076143,-366.32519952,0.00020547,2]
[389135384,1759587076153,-500.0,0.00020547,2]